bitfinex-derivatives/quotes_BTCF0:USTF0_20260221
["timestamp","ask_amount","ask_price","bid_price","bid_amount"]
[1771695559525,0.014624,68401.0,68394.0,0.014625]
[1771695563329,0.014623,68402.0,68394.0,0.014625]
[1771695564022,0.014623,68402.0,68395.0,0.014625]
[1771695565925,0.21038813,68409.0,68396.0,0.014625]
[1771695565926,0.014623,68405.0,68396.0,0.014625]
[1771695566233,0.20204257,68404.0,68397.0,0.014624]
[1771695566525,0.014622,68408.0,68401.0,0.014623]
[1771695566730,0.20203801,68407.0,68401.0,0.014623]
[1771695566929,0.20203801,68406.0,68401.0,0.014623]
[1771695567133,0.20203826,68405.0,68401.0,0.014623]
[1771695567331,0.014622,68408.0,68401.0,0.014623]
[1771695567630,0.2020405,68407.0,68401.0,0.014623]
[1771695567830,0.2020405,68406.0,68401.0,0.014623]
[1771695568031,0.2020405,68405.0,68401.0,0.014623]
[1771695568232,0.014622,68408.0,68400.0,0.014624]
[1771695568424,0.20204273,68407.0,68400.0,0.014624]
[1771695568622,0.20204273,68406.0,68400.0,0.014624]
[1771695568835,0.014622,68408.0,68401.0,0.001]
[1771695569035,0.20204027,68407.0,68401.0,0.001]
[1771695569328,0.20204027,68406.0,68401.0,0.001]
[1771695569532,0.014622,68408.0,68401.0,0.001]
[1771695569733,0.20204218,68407.0,68401.0,0.001]
[1771695569930,0.20204218,68406.0,68397.0,0.014624]
[1771695570127,0.014622,68408.0,68400.0,0.001]
[1771695570334,0.20204209,68407.0,68400.0,0.001]
[1771695570629,0.20204209,68406.0,68400.0,0.001]
[1771695570929,0.014622,68408.0,68399.0,0.014624]
[1771695571129,0.20204328,68407.0,68399.0,0.014624]
[1771695571335,0.20204328,68406.0,68399.0,0.014624]
[1771695571632,0.014622,68408.0,68400.0,0.001]
[1771695571832,0.2020443,68407.0,68400.0,0.001]
[1771695572029,0.2020443,68406.0,68400.0,0.001]
[1771695572230,0.014622,68408.0,68400.0,0.001]
[1771695572426,0.20204547,68407.0,68400.0,0.001]
[1771695572625,0.20204547,68406.0,68400.0,0.001]
[1771695572825,0.014622,68408.0,68400.0,0.001]
[1771695573025,0.20204547,68407.0,68400.0,0.014624]
[1771695573226,0.20204547,68406.0,68400.0,0.014624]
[1771695573420,0.20204302,68405.0,68400.0,0.029248]
[1771695573626,0.20204302,68404.0,68400.0,0.029248]
[1771695573826,0.20204302,68403.0,68400.0,0.029248]
[1771695574027,0.014622,68409.0,68401.0,0.014623]
[1771695574328,0.001,68406.0,68400.0,0.014624]
[1771695574730,0.014622,68409.0,68400.0,0.014624]
[1771695574931,0.001,68404.0,68400.0,0.014624]
[1771695576432,0.029244,68409.0,68400.0,0.014624]
[1771695576634,0.001,68406.0,68400.0,0.014624]
[1771695577131,0.001,68404.0,68400.0,0.014624]
[1771695577836,0.014622,68409.0,68395.0,0.014625]
[1771695577837,0.015622,68406.0,68395.0,0.014625]
[1771695578033,0.015622,68406.0,68397.0,0.014624]
[1771695578234,0.030245,68406.0,68397.0,0.014624]
[1771695578933,0.015622,68406.0,68397.0,0.014624]
[1771695579329,0.001,68404.0,68395.0,0.014625]
[1771695579935,0.014623,68405.0,68396.0,0.014625]
[1771695580335,0.029246,68404.0,68395.0,0.014625]
[1771695580534,0.014623,68404.0,68395.0,0.014625]
[1771695581037,0.029246,68404.0,68395.0,0.014625]
[1771695581337,0.014623,68404.0,68395.0,0.02925]
[1771695581641,0.014623,68404.0,68396.0,0.014625]
[1771695581834,0.014623,68405.0,68397.0,0.014624]
[1771695582639,0.014623,68404.0,68396.0,0.014625]
[1771695584344,0.029246,68404.0,68395.0,0.014625]
[1771695585041,0.014623,68404.0,68395.0,0.014625]
[1771695585437,0.014623,68404.0,68396.0,0.014625]
[1771695585636,0.014623,68404.0,68393.0,0.014625]
[1771695586041,0.014623,68404.0,68395.0,0.015625]
[1771695586438,0.014623,68404.0,68395.0,0.014625]
[1771695586643,0.014623,68404.0,68396.0,0.001]
[1771695587042,0.014623,68404.0,68395.0,0.014625]
[1771695587236,0.014623,68404.0,68395.0,0.015625]
[1771695587738,0.014623,68402.0,68395.0,0.001]
[1771695589046,0.014623,68402.0,68394.0,0.014625]
[1771695589649,0.015623,68402.0,68394.0,0.014625]
[1771695590147,0.014623,68402.0,68394.0,0.014625]
[1771695590347,0.015623,68402.0,68394.0,0.014625]
[1771695592750,0.014624,68400.0,68391.0,0.014626]
[1771695593050,0.014624,68400.0,68392.0,0.014625]
[1771695593747,0.014623,68402.0,68386.0,0.014627]
[1771695593748,0.014625,68395.0,68386.0,0.014627]
[1771695594049,0.014625,68395.0,68387.0,0.014626]
[1771695594551,0.014625,68394.0,68387.0,0.014626]
[1771695595452,0.014625,68394.0,68387.0,0.029252]
[1771695595649,0.014625,68394.0,68385.0,0.014627]
[1771695595846,0.014625,68394.0,68387.0,0.014626]
[1771695596448,0.015625,68394.0,68387.0,0.014626]
[1771695596841,0.014625,68394.0,68387.0,0.014626]
[1771695597645,0.015625,68394.0,68387.0,0.014626]
[1771695599254,0.001,68394.0,68389.0,0.014626]
[1771695599443,0.014625,68396.0,68389.0,0.014626]
[1771695599845,0.014625,68396.0,68389.0,0.029252]
[1771695600044,0.014625,68396.0,68389.0,0.014626]
[1771695601152,0.02925,68396.0,68387.0,0.014626]
[1771695601356,0.20713112,68395.0,68389.0,0.014626]
[1771695601552,0.015625,68396.0,68389.0,0.014626]
[1771695602255,0.03025,68396.0,68389.0,0.014626]
[1771695603343,0.015625,68396.0,68389.0,0.014626]
[1771695603749,0.014625,68396.0,68389.0,0.014626]
[1771695608758,0.014625,68392.0,68385.0,0.014627]
[1771695609059,0.014625,68394.0,68386.0,0.015507]
[1771695609359,0.014625,68394.0,68386.0,0.014627]
[1771695609759,0.014625,68394.0,68387.0,0.014627]
[1771695611958,0.014625,68394.0,68386.0,0.014627]
[1771695612161,0.014625,68394.0,68387.0,0.014626]
[1771695612458,0.02925,68394.0,68386.0,0.014627]
[1771695612960,0.014625,68394.0,68387.0,0.014627]
[1771695613453,0.20701689,68393.0,68387.0,0.014627]
[1771695613658,0.014625,68394.0,68387.0,0.014627]
[1771695613859,0.20701689,68393.0,68387.0,0.014627]
[1771695614063,0.014625,68394.0,68387.0,0.014627]
[1771695614261,0.22164189,68393.0,68385.0,0.014627]
[1771695614455,0.014625,68393.0,68385.0,0.014627]
[1771695614655,0.014625,68393.0,68386.0,0.014627]
[1771695616660,0.014625,68393.0,68386.0,0.029254]
[1771695617160,0.014625,68393.0,68387.0,0.014627]
[1771695617360,0.20704901,68392.0,68387.0,0.014627]
[1771695617554,0.014625,68394.0,68387.0,0.014627]
[1771695617755,0.20704901,68393.0,68387.0,0.014627]
[1771695617955,0.014625,68394.0,68387.0,0.014627]
[1771695618157,0.20704885,68393.0,68387.0,0.014627]
[1771695618356,0.207064,68392.0,68387.0,0.014627]
[1771695618553,0.014625,68394.0,68387.0,0.014627]
[1771695618749,0.207064,68393.0,68387.0,0.014627]
[1771695618959,0.207064,68392.0,68387.0,0.014627]
[1771695619162,0.014625,68394.0,68387.0,0.014627]
[1771695619350,0.207064,68393.0,68387.0,0.014627]
[1771695619663,0.207064,68392.0,68387.0,0.014627]
[1771695619861,0.014625,68394.0,68387.0,0.014627]
[1771695620057,0.20708293,68393.0,68387.0,0.014627]
[1771695620262,0.20708293,68392.0,68387.0,0.014627]
[1771695620464,0.014625,68394.0,68387.0,0.014627]
[1771695620763,0.20710645,68393.0,68387.0,0.014627]
[1771695620961,0.20710645,68392.0,68387.0,0.014627]
[1771695621152,0.014625,68394.0,68387.0,0.014627]
[1771695621356,0.20710645,68393.0,68387.0,0.014627]
[1771695621563,0.20710645,68392.0,68387.0,0.014627]
[1771695621763,0.014625,68394.0,68387.0,0.014627]
[1771695621961,0.2071359,68393.0,68387.0,0.014627]
[1771695622162,0.2071359,68392.0,68387.0,0.014627]
[1771695622356,0.014625,68394.0,68387.0,0.014627]
[1771695622557,0.20717396,68393.0,68387.0,0.014627]
[1771695622757,0.20717396,68392.0,68387.0,0.014627]
[1771695622958,0.20717396,68391.0,68387.0,0.014627]
[1771695623158,0.014625,68394.0,68387.0,0.014627]
[1771695624869,0.014625,68397.0,68389.0,0.014626]
[1771695626070,0.014625,68397.0,68389.0,0.015626]
[1771695626566,0.014625,68395.0,68389.0,0.001]
[1771695627560,0.014625,68396.0,68388.0,0.014626]
[1771695629664,0.014624,68397.0,68388.0,0.014626]
[1771695629869,0.014624,68397.0,68388.0,0.029252]
[1771695630076,0.014624,68397.0,68391.0,0.00088]
[1771695630372,0.014624,68397.0,68388.0,0.029252]
[1771695631176,0.014624,68397.0,68389.0,0.014626]
[1771695632872,0.014624,68397.0,68389.0,0.015626]
[1771695633377,0.21348021,68396.0,68389.0,0.015626]
[1771695633574,0.21348021,68395.0,68389.0,0.015626]
[1771695633877,0.014624,68397.0,68389.0,0.015626]
[1771695634068,0.21291621,68396.0,68389.0,0.015626]
[1771695634268,0.21291621,68395.0,68390.0,0.014626]
[1771695634471,0.014624,68398.0,68390.0,0.014626]
[1771695634669,0.2129187,68397.0,68389.0,0.015626]
[1771695634870,0.2129187,68396.0,68389.0,0.015626]
[1771695635068,0.2129187,68395.0,68389.0,0.015626]
[1771695635270,0.029248,68398.0,68389.0,0.015626]
[1771695635470,0.21292191,68397.0,68389.0,0.014626]
[1771695635673,0.21292191,68396.0,68389.0,0.014626]
[1771695635877,0.21292191,68395.0,68389.0,0.014626]
[1771695636076,0.014624,68397.0,68389.0,0.014626]
[1771695636272,0.21292191,68396.0,68389.0,0.014626]
[1771695636478,0.21292191,68395.0,68389.0,0.014626]
[1771695636677,0.014624,68397.0,68389.0,0.014626]
[1771695636878,0.21292589,68396.0,68389.0,0.014626]
[1771695637082,0.014624,68398.0,68389.0,0.014626]
[1771695637283,0.21291905,68397.0,68389.0,0.014626]
[1771695637474,0.21291905,68396.0,68389.0,0.014626]
[1771695637777,0.014624,68398.0,68389.0,0.014626]
[1771695637980,0.21292032,68397.0,68389.0,0.014626]
[1771695638176,0.21292032,68396.0,68389.0,0.014626]
[1771695638377,0.014624,68398.0,68389.0,0.014626]
[1771695638577,0.21292089,68397.0,68389.0,0.015626]
[1771695638779,0.21292089,68396.0,68389.0,0.015626]
[1771695639079,0.014624,68397.0,68389.0,0.014626]
[1771695639278,0.21292089,68396.0,68389.0,0.014626]
[1771695639483,0.014624,68397.0,68389.0,0.014626]
[1771695639683,0.2129176,68396.0,68389.0,0.014626]
[1771695639882,0.014624,68397.0,68389.0,0.014626]
[1771695640083,0.2129176,68396.0,68389.0,0.014626]
[1771695640282,0.014624,68397.0,68389.0,0.014626]
[1771695640579,0.21291562,68396.0,68389.0,0.014626]
[1771695640781,0.014624,68397.0,68389.0,0.014626]
[1771695640972,0.21291562,68396.0,68389.0,0.014626]
[1771695641173,0.014624,68397.0,68389.0,0.014626]
[1771695641374,0.21291562,68396.0,68389.0,0.014626]
[1771695641583,0.014624,68397.0,68389.0,0.014626]
[1771695641782,0.21291401,68396.0,68389.0,0.014626]
[1771695641985,0.014624,68397.0,68389.0,0.014626]
[1771695642187,0.21291401,68396.0,68389.0,0.014626]
[1771695642386,0.014625,68396.0,68389.0,0.014626]
[1771695642581,0.014625,68393.0,68385.0,0.014627]
[1771695642988,0.014625,68395.0,68387.0,0.014626]
[1771695645183,0.014625,68393.0,68385.0,0.014627]
[1771695646191,0.014625,68393.0,68385.0,0.029254]
[1771695646990,0.014625,68393.0,68385.0,0.014627]
[1771695647688,0.014625,68393.0,68385.0,0.029254]
[1771695648593,0.014625,68393.0,68385.0,0.014627]
[1771695648985,0.014625,68393.0,68386.0,0.014627]
[1771695649588,0.014625,68394.0,68386.0,0.014627]
[1771695650891,0.014625,68395.0,68386.0,0.014627]
[1771695655297,0.014625,68395.0,68387.0,0.014626]
[1771695655595,0.014625,68396.0,68388.0,0.014626]
[1771695656595,0.014625,68396.0,68387.0,0.014626]
[1771695657799,0.014625,68396.0,68387.0,0.015626]
[1771695661392,0.014625,68396.0,68387.0,0.014626]
[1771695663604,0.21135151,68395.0,68387.0,0.014626]
[1771695663803,0.21135151,68394.0,68387.0,0.014626]
[1771695664003,0.21135151,68393.0,68387.0,0.014626]
[1771695664205,0.014625,68396.0,68387.0,0.014626]
[1771695664402,0.21135356,68395.0,68387.0,0.014626]
[1771695664604,0.21135356,68394.0,68387.0,0.014626]
[1771695664905,0.21135356,68393.0,68387.0,0.014626]
[1771695665206,0.02925,68396.0,68387.0,0.014626]
[1771695665508,0.21135388,68395.0,68387.0,0.014626]
[1771695665698,0.21135388,68394.0,68387.0,0.014626]
[1771695665896,0.21135388,68393.0,68387.0,0.014626]
[1771695666101,0.014625,68396.0,68387.0,0.014626]
[1771695666301,0.21135632,68395.0,68387.0,0.014626]
[1771695666506,0.21135632,68394.0,68387.0,0.014626]
[1771695666714,0.21135632,68393.0,68387.0,0.014626]
[1771695666918,0.014625,68396.0,68387.0,0.014626]
[1771695667115,0.2113595,68395.0,68387.0,0.014626]
[1771695667316,0.2113595,68394.0,68387.0,0.014626]
[1771695667518,0.2113595,68393.0,68387.0,0.014626]
[1771695667714,0.014625,68396.0,68387.0,0.014626]
[1771695667912,0.21135998,68395.0,68387.0,0.014626]
[1771695668115,0.21135998,68394.0,68387.0,0.014626]
[1771695668416,0.21135998,68393.0,68387.0,0.029252]
[1771695668613,0.014625,68396.0,68387.0,0.029252]
[1771695668814,0.21136089,68395.0,68387.0,0.029252]
[1771695669015,0.21136089,68394.0,68387.0,0.029252]
[1771695669221,0.21136089,68393.0,68387.0,0.014626]
[1771695669410,0.014625,68396.0,68387.0,0.029252]
[1771695669608,0.21136172,68395.0,68387.0,0.029252]
[1771695669814,0.21136172,68394.0,68387.0,0.029252]
[1771695670113,0.21136172,68393.0,68387.0,0.029252]
[1771695670313,0.014625,68396.0,68387.0,0.029252]
[1771695670518,0.21136214,68395.0,68387.0,0.029252]
[1771695670720,0.21136214,68394.0,68387.0,0.029252]
[1771695670921,0.21136214,68393.0,68389.0,0.014626]
[1771695671222,0.029249,68397.0,68389.0,0.014626]
[1771695671522,0.21135019,68396.0,68389.0,0.014626]
[1771695671722,0.21135019,68395.0,68388.0,0.014626]
[1771695673415,0.014625,68396.0,68388.0,0.014626]
[1771695681838,0.014624,68397.0,68388.0,0.014626]
[1771695686637,0.029248,68400.0,68391.0,0.014626]
[1771695686837,0.20957689,68399.0,68391.0,0.014626]
[1771695687141,0.20957689,68398.0,68391.0,0.014626]
[1771695687342,0.029248,68400.0,68391.0,0.014626]
[1771695687542,0.20957199,68399.0,68391.0,0.014626]
[1771695687736,0.20957199,68398.0,68391.0,0.014626]
[1771695687937,0.029248,68400.0,68391.0,0.014626]
[1771695688141,0.20957191,68399.0,68391.0,0.014626]
[1771695688440,0.20957191,68398.0,68391.0,0.014626]
[1771695688746,0.029248,68400.0,68391.0,0.014626]
[1771695689045,0.22419516,68399.0,68390.0,0.014626]
[1771695689246,0.20957116,68398.0,68390.0,0.014626]
[1771695689452,0.014624,68399.0,68390.0,0.014626]
[1771695689746,0.20957084,68398.0,68390.0,0.014626]
[1771695689946,0.014624,68399.0,68390.0,0.014626]
[1771695690149,0.20957068,68398.0,68390.0,0.014626]
[1771695690347,0.66044188,68413.0,68389.0,0.23201366]
[1771695690639,0.014622,68411.0,68401.0,0.014624]
[1771695690839,0.014622,68409.0,68401.0,0.014624]
[1771695691241,0.014622,68409.0,68400.0,0.014624]
[1771695693345,0.014622,68409.0,68400.0,0.015624]
[1771695693738,0.014622,68409.0,68400.0,0.030248]
[1771695694444,0.014622,68409.0,68400.0,0.015624]
[1771695697145,0.029244,68409.0,68400.0,0.015624]
[1771695697541,0.014622,68408.0,68400.0,0.001]
[1771695698245,0.014622,68410.0,68401.0,0.014624]
[1771695698838,0.014621,68412.0,68402.0,0.014623]
[1771695699047,0.014622,68410.0,68401.0,0.014623]
[1771695699445,0.014622,68410.0,68401.0,0.029246]
[1771695699851,0.014622,68410.0,68401.0,0.014623]
[1771695700354,0.014622,68409.0,68401.0,0.001]
[1771695700845,0.37322401,68411.0,68390.0,0.26284502]
[1771695701052,0.17795768,68400.0,68394.0,0.014625]
[1771695701243,0.19258068,68404.0,68394.0,0.014625]
[1771695701552,0.014623,68403.0,68394.0,0.014625]
[1771695702950,0.014622,68407.0,68397.0,0.014624]
[1771695703152,0.014623,68405.0,68396.0,0.014624]
[1771695703349,0.014621,68411.0,68395.0,0.014625]
[1771695703653,0.014622,68407.0,68399.0,0.014624]
[1771695706061,0.015622,68407.0,68399.0,0.014624]
[1771695708158,0.014622,68407.0,68399.0,0.014624]
[1771695708355,0.014622,68407.0,68393.0,0.24894137]
[1771695708655,0.014623,68403.0,68394.0,0.014625]
[1771695709057,0.014623,68402.0,68394.0,0.014625]
[1771695710454,0.014623,68403.0,68395.0,0.014625]
[1771695711555,0.014623,68404.0,68396.0,0.014624]
[1771695711755,0.014623,68403.0,68395.0,0.014625]
[1771695713361,0.014623,68403.0,68396.0,0.014625]
[1771695713764,0.014623,68404.0,68396.0,0.014625]
[1771695714060,0.014623,68404.0,68396.0,0.009596]
[1771695716066,0.014622,68407.0,68396.0,0.014624]
[1771695716368,0.029244,68407.0,68398.0,0.014624]
[1771695716765,0.014622,68407.0,68398.0,0.014624]
[1771695720064,0.014622,68407.0,68401.0,0.00088]
[1771695720270,0.014622,68408.0,68399.0,0.014624]
[1771695720465,0.014622,68409.0,68398.0,0.014624]
[1771695720672,0.014622,68411.0,68401.0,0.029246]
[1771695720871,0.014621,68412.0,68402.0,0.014623]
[1771695721270,0.014622,68411.0,68402.0,0.014623]
[1771695721567,0.01462,68417.0,68401.0,0.23431637]
[1771695721768,0.01462,68419.0,68406.0,0.014622]
[1771695721970,0.01462,68417.0,68407.0,0.014622]
[1771695722270,0.01462,68417.0,68405.0,0.014623]
[1771695722460,0.01462,68417.0,68407.0,0.014622]
[1771695722661,0.01462,68419.0,68409.0,0.014622]
[1771695722884,0.27255142,68427.0,68409.0,0.014622]
[1771695722885,6.6e-07,68431.0,68426.0,0.014618]
[1771695723167,6.6e-07,68431.0,68405.0,0.34317928]
[1771695723168,0.014615,68443.0,68432.0,0.014617]
[1771695723374,0.014616,68437.0,68422.0,0.014619]
[1771695723565,0.014615,68440.0,68421.0,0.23431637]
[1771695723771,0.014616,68438.0,68428.0,0.014618]
[1771695723960,0.014616,68437.0,68426.0,0.014618]
[1771695724160,0.014616,68436.0,68425.0,0.014618]
[1771695724366,0.014617,68432.0,68425.0,0.014618]
[1771695724562,0.17795768,68440.0,68419.0,0.17476237]
[1771695724769,0.014618,68428.0,68419.0,0.01462]
[1771695725063,0.014618,68426.0,68419.0,0.01462]
[1771695725670,0.014619,68424.0,68416.0,0.17476237]
[1771695725870,0.014618,68429.0,68421.0,0.001]
[1771695726172,0.014618,68427.0,68421.0,0.001]
[1771695726373,0.014618,68426.0,68420.0,0.014619]
[1771695727272,0.014618,68425.0,68420.0,0.014619]
[1771695727873,0.014618,68428.0,68420.0,0.014619]
[1771695728178,0.014617,68430.0,68410.0,0.4408027]
[1771695728179,0.38710051,68450.0,68428.0,0.014618]
[1771695728972,0.014616,68439.0,68432.0,0.014617]
[1771695729174,0.014616,68437.0,68430.0,0.014617]
[1771695729469,0.014616,68436.0,68430.0,0.014617]
[1771695730768,0.014616,68438.0,68432.0,0.014617]
[1771695731776,0.014615,68439.0,68431.0,0.014617]
[1771695732077,0.014614,68446.0,68439.0,0.014615]
[1771695732276,0.014614,68444.0,68436.0,0.014616]
[1771695732574,0.014614,68444.0,68438.0,0.014616]
[1771695732777,0.014615,68442.0,68436.0,0.014616]
[1771695733077,0.014615,68442.0,68437.0,0.014616]
[1771695733372,0.014616,68438.0,68432.0,0.014617]
[1771695733677,0.014615,68439.0,68433.0,0.014617]
[1771695735372,0.014615,68439.0,68434.0,0.014616]
[1771695736582,0.015615,68439.0,68434.0,0.014616]
[1771695736884,0.014615,68439.0,68434.0,0.014616]
[1771695738070,0.21229514,68450.0,68439.0,0.014615]
[1771695738380,0.014615,68443.0,68438.0,0.014616]
[1771695738577,0.22368391,68458.0,68433.0,0.014617]
[1771695738578,0.13004157,68466.0,68445.0,0.22313931]
[1771695738771,0.014611,68459.0,68450.0,0.17795768]
[1771695738969,0.014611,68459.0,68451.0,0.014613]
[1771695739282,0.014611,68459.0,68449.0,0.014613]
[1771695739283,0.014612,68457.0,68452.0,0.014613]
[1771695739475,0.01461,68463.0,68452.0,0.014613]
[1771695739667,0.014611,68458.0,68452.0,0.014613]
[1771695739869,0.01461,68463.0,68448.0,0.014613]
[1771695739870,0.014612,68454.0,68448.0,0.014613]
[1771695740179,0.014611,68458.0,68447.0,0.014614]
[1771695740384,0.014613,68453.0,68447.0,0.014614]
[1771695740681,0.01533713,68481.0,68474.0,0.014608]
[1771695740975,0.014607,68477.0,68470.0,0.17795768]
[1771695741175,0.01461,68467.0,68460.0,0.014611]
[1771695741391,0.014609,68468.0,68462.0,0.014611]
[1771695741576,0.014609,68469.0,68463.0,0.01461]
[1771695741878,0.014608,68474.0,68464.0,0.01461]
[1771695742084,0.014608,68473.0,68466.0,0.01461]
[1771695742275,0.014609,68472.0,68466.0,0.01461]
[1771695742475,0.014609,68472.0,68465.0,0.01461]
[1771695742476,0.014609,68471.0,68465.0,0.01461]
[1771695743075,0.014609,68472.0,68466.0,0.01461]
[1771695743281,0.014606,68482.0,68460.0,0.19256868]
[1771695743282,0.014608,68476.0,68470.0,0.014609]
[1771695743480,0.014608,68476.0,68468.0,0.014609]
[1771695743481,0.014608,68475.0,68469.0,0.014609]
[1771695743680,0.014607,68478.0,68470.0,0.014609]
[1771695744388,0.014609,68471.0,68464.0,0.01461]
[1771695744586,0.014609,68471.0,68465.0,0.01461]
[1771695745388,0.014609,68470.0,68465.0,0.01461]
[1771695745884,0.014608,68475.0,68460.0,0.17795768]
[1771695746181,0.014609,68468.0,68462.0,0.014611]
[1771695746386,0.2320883,68480.0,68458.0,0.19256868]
[1771695746387,0.17795768,68480.0,68458.0,0.19256868]
[1771695746586,0.01461,68464.0,68457.0,0.014612]
[1771695746779,0.014611,68460.0,68454.0,0.014612]
[1771695746980,0.014611,68460.0,68450.0,0.19257068]
[1771695746981,0.014611,68460.0,68450.0,0.17795768]
[1771695747187,0.23065577,68469.0,68454.0,0.014612]
[1771695747376,0.014611,68461.0,68455.0,0.014612]
[1771695747581,0.014611,68460.0,68455.0,0.014612]
[1771695748078,0.014611,68460.0,68454.0,0.014612]
[1771695748275,0.01461,68466.0,68450.0,0.17795768]
[1771695748679,0.014613,68453.0,68446.0,0.014614]
[1771695748880,0.014613,68451.0,68446.0,0.014614]
[1771695749080,0.014613,68451.0,68445.0,0.014614]
[1771695749277,0.014613,68450.0,68442.0,0.014615]
[1771695749481,0.014613,68451.0,68445.0,0.014614]
[1771695749789,0.014612,68454.0,68449.0,0.014613]
[1771695750089,0.014612,68454.0,68448.0,0.014613]
[1771695750289,0.014613,68453.0,68448.0,0.014613]
[1771695750991,0.014612,68455.0,68449.0,0.014613]
[1771695751289,0.014612,68454.0,68448.0,0.014613]
[1771695751478,0.014612,68455.0,68448.0,0.014613]
[1771695751684,0.014613,68453.0,68448.0,0.014613]
[1771695752290,0.014613,68453.0,68439.0,0.014615]
[1771695752291,0.014612,68456.0,68450.0,0.014613]
[1771695752491,0.014612,68457.0,68450.0,0.014613]
[1771695752492,0.014612,68457.0,68452.0,0.014612]
[1771695753190,0.014611,68458.0,68452.0,0.014612]
[1771695753387,0.014612,68457.0,68452.0,0.014612]
[1771695753890,0.014611,68458.0,68453.0,0.014612]
[1771695754090,0.014611,68462.0,68456.0,0.014612]
[1771695754280,0.014611,68461.0,68456.0,0.014612]
[1771695754884,0.014609,68470.0,68460.0,0.014611]
[1771695755088,0.014609,68470.0,68453.0,0.22313931]
[1771695755089,0.014609,68468.0,68453.0,0.22313931]
[1771695755286,0.01461,68467.0,68461.0,0.014611]
[1771695755485,0.01461,68466.0,68461.0,0.014611]
[1771695756393,0.014609,68467.0,68462.0,0.01461]
[1771695757993,0.014608,68474.0,68459.0,0.014611]
[1771695757994,0.01461,68465.0,68459.0,0.014611]
[1771695758388,0.01461,68464.0,68459.0,0.014611]
[1771695759693,0.01561,68464.0,68459.0,0.014611]
[1771695760491,0.01561,68464.0,68445.0,0.48857979]
[1771695760492,0.014611,68461.0,68445.0,0.22573477]
[1771695760690,0.014611,68460.0,68455.0,0.014612]
[1771695760890,0.014611,68461.0,68454.0,0.014612]
[1771695761090,0.014611,68460.0,68455.0,0.014612]
[1771695761293,0.01461,68463.0,68458.0,0.014611]
[1771695761590,0.014611,68462.0,68457.0,0.014612]
[1771695761991,0.001,68460.0,68457.0,0.014612]
[1771695762392,0.014611,68462.0,68457.0,0.014612]
[1771695762597,0.014611,68462.0,68458.0,0.001]
[1771695762993,0.014611,68462.0,68457.0,0.014612]
[1771695763298,0.001,68460.0,68457.0,0.014612]
[1771695764989,0.014611,68462.0,68458.0,0.001]
[1771695765394,0.014611,68461.0,68456.0,0.014612]
[1771695765589,0.014611,68459.0,68454.0,0.014612]
[1771695765796,0.01461,68464.0,68451.0,0.014613]
[1771695765990,0.01461,68464.0,68458.0,0.014611]
[1771695766195,0.01461,68463.0,68458.0,0.015611]
[1771695766391,0.014608,68474.0,68459.0,0.014611]
[1771695766699,0.014609,68469.0,68464.0,0.01461]
[1771695767299,0.22034051,68481.0,68468.0,0.014609]
[1771695767300,0.014608,68475.0,68468.0,0.014609]
[1771695767496,0.014608,68472.0,68468.0,0.014609]
[1771695768395,0.014608,68474.0,68468.0,0.014609]
[1771695768595,0.014608,68474.0,68464.0,0.01461]
[1771695768793,0.014608,68473.0,68468.0,0.014609]
[1771695769202,0.001,68472.0,68468.0,0.014609]
[1771695769703,0.014608,68474.0,68469.0,0.014609]
[1771695770200,0.014608,68473.0,68469.0,0.014609]
[1771695770400,0.014608,68473.0,68468.0,0.014609]
[1771695770602,0.014608,68474.0,68469.0,0.014609]
[1771695771003,0.014609,68471.0,68466.0,0.01461]
[1771695771204,0.014608,68472.0,68467.0,0.014609]
[1771695771500,0.015608,68472.0,68467.0,0.014609]
[1771695771898,0.014607,68479.0,68468.0,0.014609]
[1771695772097,0.014607,68478.0,68471.0,0.014608]
[1771695772506,0.014608,68476.0,68471.0,0.014608]
[1771695772797,0.014608,68476.0,68470.0,0.029218]
[1771695773004,0.01533713,68481.0,68465.0,0.18803337]
[1771695773005,0.014609,68471.0,68465.0,0.18803337]
[1771695773304,0.014609,68471.0,68465.0,0.01461]
[1771695773901,0.014609,68471.0,68466.0,0.01461]
[1771695776505,0.014608,68472.0,68467.0,0.014609]
[1771695778106,0.014608,68472.0,68467.0,0.015609]
[1771695778709,0.014608,68472.0,68467.0,0.014609]
[1771695779008,0.014608,68472.0,68467.0,0.015609]
[1771695780315,0.014609,68471.0,68467.0,0.001]
[1771695780507,0.04624343,68468.0,68448.0,0.2616054]
[1771695780709,0.04624343,68468.0,68455.0,0.014612]
[1771695780710,0.014611,68460.0,68455.0,0.014612]
[1771695781210,0.014611,68461.0,68455.0,0.014612]
[1771695782103,0.014611,68459.0,68447.0,0.014614]
[1771695782307,0.014612,68455.0,68448.0,0.014614]
[1771695782507,0.014612,68454.0,68449.0,0.014613]
[1771695782707,0.014612,68455.0,68449.0,0.014613]
[1771695782917,0.014613,68451.0,68441.0,0.014615]
[1771695783100,0.014614,68444.0,68437.0,0.014616]
[1771695783304,0.014614,68445.0,68438.0,0.014616]
[1771695783499,0.014614,68445.0,68437.0,0.014616]
[1771695783705,0.014615,68444.0,68438.0,0.014616]
[1771695783905,0.014615,68443.0,68438.0,0.014616]
[1771695784812,0.014615,68442.0,68436.0,0.014616]
[1771695785416,0.014615,68443.0,68437.0,0.014616]
[1771695785615,0.014615,68443.0,68438.0,0.014616]
[1771695785910,0.014615,68442.0,68437.0,0.014616]
[1771695786318,0.014614,68444.0,68438.0,0.014616]
[1771695786514,0.029229,68444.0,68438.0,0.014616]
[1771695786713,0.014615,68443.0,68437.0,0.014616]
[1771695787610,0.015615,68443.0,68437.0,0.014616]